fUSD/lending_fUSD_20251223
["ID","MTS","AMOUNT","RATE_DAILY","PERIOD"]
[399600454,1766531444914,-250.0,0.00025421,2]
[399600455,1766531444925,-151.87941199,0.00025469,2]
[399600456,1766531444935,-1000.0,0.00025479,2]
[399600457,1766531444944,-612.0,0.00025676,2]
[399600458,1766531444953,-1326.0,0.00025676,2]
[399600459,1766531444963,-1609.0,0.00025676,2]
[399600460,1766531444973,-468.0,0.00025676,2]
[399600461,1766531444983,-1263.0,0.00025676,2]
[399600462,1766531444993,-3124.0,0.00025809,2]
[399600463,1766531445002,-10851.69,0.000259,7]
[399600464,1766531445011,-1871.99510069,0.00025904,2]
[399600465,1766531445021,-643.57607756,0.00025906,2]
[399600466,1766531445031,-500.0,0.00025918,2]
[399600467,1766531445040,-161.5,0.00025945,2]
[399600468,1766531445050,-373.07297731,0.00025947,2]
[399600469,1766531445059,-350.0,0.00025968,2]
[399600470,1766531445070,-597.31597025,0.0002599,2]
[399600471,1766531445080,-215.30625405,0.00026,2]
[399600472,1766531445090,-7440.21392185,0.00026,10]
[399600473,1766531445100,-162.06454868,0.00026,2]
[399600474,1766531445110,-210.16628977,0.00026025,14]
[399600475,1766531445119,-157.71,0.00026032,2]
[399600476,1766531445129,-150.0,0.00026263,2]
[399600477,1766531445138,-1500.0,0.00026301,2]
[399600478,1766531445149,-157.71,0.00026388,2]
[399600479,1766531445158,-285.9,0.00026482,2]
[399600480,1766531445167,-450.0,0.00026516,2]
[399600481,1766531445177,-330.0,0.00026604,10]
[399600482,1766531445187,-299.12,0.00026611,2]
[399600483,1766531445196,-659.85,0.00026676,2]
[399600484,1766531445205,-157.70966565,0.00026744,2]
[399600485,1766531445216,-1309.90154228,0.00026765,4]
[399600486,1766531445226,-316.97182958,0.00026795,2]
[399600487,1766531445236,-250.0,0.00027,2]
[399600488,1766531445246,-1966.0837171,0.00027,14]
[399600489,1766531445255,-1028.28866753,0.00027,2]
[399600490,1766531445264,-530.0,0.00027,2]
[399600491,1766531445274,-500.0,0.00027,2]
[399600492,1766531445284,-2000.0,0.00027,2]
[399600493,1766531445294,-2422.459272,0.0002701,2]
[399600494,1766531445304,-362.10943873,0.00027064,2]
[399600495,1766531445314,-1668.66,0.000271,14]
[399600496,1766531445323,-2000.0,0.00027123,2]
[399600497,1766531445333,-210.16628977,0.00027167,18]
[399600498,1766531445342,-263.40568662,0.00027316,2]
[399600499,1766531445352,-150.0,0.00027369,2]
[399600500,1766531445361,-280.31421816,0.00027397,47]
[399600501,1766531445371,-219.71166263,0.00027397,42]
[399600502,1766531445381,-418.0,0.00027397,3]
[399600503,1766531445393,-516.34,0.00027397,2]
[399600504,1766531445403,-1165.12,0.00027397,2]
[399600505,1766531445412,-1438.77,0.00027397,2]
[399600506,1766531445422,-500.0,0.00027397,14]
[399600507,1766531445434,-1500.0,0.00027397,16]
[399600508,1766531445443,-300.0,0.00027397,2]
[399600509,1766531445452,-151.0,0.00027397,7]
[399600510,1766531445463,-151.0,0.00027397,7]
[399600511,1766531445472,-151.0,0.00027397,7]
[399600512,1766531445482,-183.36,0.00027397,10]
[399600513,1766531445492,-500.9859774,0.00027397,5]
[399600514,1766531445502,-159.69825476,0.00027397,5]
[399600515,1766531445512,-158.34911883,0.00027397,5]
[399600516,1766531445522,-10851.69,0.000274,7]
[399600517,1766531445532,-409.6,0.000277,7]
[399600518,1766531445541,-161.5,0.00027815,2]
[399600519,1766531445798,-201.0,0.000279,120]
[399600520,1766531445809,-881.45092358,0.000279,2]
[399600521,1766531445819,-4900.42,0.00027924,2]
[399600522,1766531445830,-2430.0,0.0002794,2]
[399600523,1766531445840,-564.0,0.0002794,2]
[399600524,1766531445850,-400.0,0.00028,120]
[399600525,1766531445860,-2000.0,0.000281,2]
[399600526,1766531445870,-210.16628977,0.00028309,22]
[399600527,1766531445880,-1000.0,0.000285,2]
[399600528,1766531445890,-1293.68778798,0.00028646,15]
[399600529,1766531445900,-612.0,0.00028676,2]
[399600530,1766531445910,-1326.0,0.00028676,2]
[399600531,1766531445920,-1609.0,0.00028676,2]
[399600532,1766531445931,-468.0,0.00028676,2]
[399600533,1766531445941,-1263.0,0.00028676,2]
[399600534,1766531445951,-268.06762017,0.00028959,30]
[399600535,1766531445961,-150.0,0.0002896,2]
[399600536,1766531445971,-45014.82139914,0.00029,2]
[399600537,1766531445981,-550.0,0.00029,2]
[399600538,1766531445991,-2665.691022,0.00029,2]
[399600539,1766531446001,-219.61849205,0.00029014,30]
[399600540,1766531446010,-643.57607756,0.00029154,2]
[399600541,1766531446021,-358.77956305,0.000294,2]
[399600542,1766531446031,-210.16628973,0.00029416,30]
[399600543,1766531446040,-210.16628977,0.0002945,26]
[399600544,1766531446050,-150.0,0.00029473,30]
[399600545,1766531446060,-164.53627288,0.00029487,2]
[399600546,1766531446070,-151.0,0.00029497,7]
[399600547,1766531446079,-151.0,0.00029497,7]
[399600548,1766531446089,-528166.0134658,0.000295,120]
[399600549,1766531446107,-422.89223244,0.000295,120]
[399600550,1766531446120,-2713.92170041,0.000295,120]
[399600551,1766531446135,-46915.52888196,0.000295,120]
[399600552,1766531446147,-23804.82070416,0.000295,120]
[399600554,1766531446301,-963.50904467,0.00019649,2]
[399600555,1766531446311,-500.0,0.0002,2]
[399600556,1766531446321,-7699.06821321,0.000295,120]
[399600557,1766531446337,-711.24252328,0.000295,120]
[399600558,1766531446614,-228.36776903,0.00027924,2]
[399600559,1766531446625,-2547.12423097,0.000295,120]
[399600560,1766531446658,-470.73434539,0.000295,120]
[399600561,1766531446670,-1702.87635442,0.000295,120]
[399600788,1766532147426,-263.73682462,0.00015582,2]
[399600789,1766532150125,-253.37020507,0.00015582,2]
[399600803,1766532237403,-28.24997031,0.00015582,2]
[399600804,1766532237428,-250.0,0.00015691,2]
[399600805,1766532237451,-10.92763524,0.000158,2]
[399600806,1766532241177,-336.32241046,0.000158,2]
[399600807,1766532246449,-247.53688052,0.000158,2]
[399600808,1766532247937,-393.16426371,0.000158,2]
[399600809,1766532250039,-178.70552067,0.000158,2]
[399600810,1766532254711,-216.21042262,0.000158,2]
[399600811,1766532258764,-299.72083751,0.000158,2]
[399600812,1766532261863,-181.65882344,0.000158,2]
[399600813,1766532263491,-187.84216364,0.000158,2]
[399600814,1766532265477,-312.60431575,0.000158,2]
[399600815,1766532271072,-135.30672644,0.000158,2]
[399600816,1766532271096,-69.79759546,0.000158,2]
[399600817,1766532273125,-212.20240454,0.000158,2]
[399600818,1766532273149,-107.86271477,0.000158,2]
[399600821,1766532277581,-284.6735378,0.000158,2]
[399600822,1766532279125,-189.88430731,0.000158,2]
[399600823,1766532282062,-157.52381796,0.000158,2]
[399600824,1766532285742,-237.13811869,0.000158,2]
[399600825,1766532288348,-244.16623454,0.000158,2]
[399600826,1766532293323,-261.74556172,0.000158,2]
[399600827,1766532297081,-205.1043219,0.000158,2]
[399600828,1766532301625,-300.0,0.000158,2]
[399600829,1766532304269,-229.00461773,0.000158,2]
[399600830,1766532306733,-258.8143871,0.000158,2]
[399600831,1766532310229,-267.36914394,0.000158,2]
[399600832,1766532311742,-155.42275962,0.000158,2]
[399600833,1766532314707,-241.1856129,0.000158,2]
[399600834,1766532318647,-66.04346402,0.000158,2]
[399600835,1766532318675,-99.85045848,0.00015845,2]
[399600836,1766532327928,-181.12675976,0.00015876,2]
[399600837,1766532327955,-54.81704024,0.00015876,2]
[399600838,1766532329979,-238.47869946,0.00015876,2]
[399600839,1766532330010,-40.45348379,0.00015876,2]
[399600841,1766532342331,-281.334555,0.00015876,2]
[399600842,1766532342355,-85.67120797,0.00015897,2]
[399600843,1766532344513,-65.32879203,0.00015897,2]
[399600844,1766532344541,-537.99660956,0.00015898,2]
[399600847,1766532346782,-475.38518518,0.00015898,2]
[399600848,1766532350560,-186.61820526,0.00015898,2]
[399600849,1766532350584,-18.96399661,0.00015899,2]
[399600873,1766532477535,-522.25722882,0.00015876,2]
[399600875,1766532492848,-142.21405661,0.00015876,2]
[399600876,1766532492874,-114.13779197,0.00015899,2]
[399600878,1766532494319,-16.89821142,0.00015899,2]
[399600879,1766532494346,-181.99688653,0.00015899,2]
[399600881,1766532495743,-118.00311347,0.00015899,2]
[399600882,1766532495768,-300.0,0.00015899,2]
[399600883,1766532495795,-273.20688653,0.00015899,2]
[399600886,1766532500452,-26.79311347,0.00015899,2]
[399600887,1766532500486,-245.99778002,0.000159,2]
[399600889,1766532502967,-250.0,0.000159,2]
[399600891,1766532504839,-228.04779414,0.000159,2]
[399600895,1766532511248,-300.0,0.000159,2]
[399600897,1766532514315,-244.73694627,0.000159,2]
[399600899,1766532518630,-602.01161188,0.000159,2]
[399600900,1766532520577,-421.96431454,0.000159,2]
[399600901,1766532524972,-195.0,0.000159,2]
[399600902,1766532527259,-192.45132416,0.000159,2]
[399600903,1766532529464,-312.30076153,0.000159,2]
[399600904,1766532533824,-399.97864538,0.000158,2]
[399600905,1766532535824,-547.65321864,0.000158,2]
[399600906,1766532537333,-443.64321213,0.000158,2]
[399600907,1766532542668,-300.0,0.00015799,2]
[399600908,1766532542705,-5.75,0.000158,2]
[399600909,1766532544317,-175.31266898,0.000158,2]
[399600910,1766532545878,-188.36618062,0.000158,2]
[399600911,1766532550047,-500.41595698,0.000158,2]
[399600912,1766532552070,-238.02179816,0.000158,2]
[399600913,1766532553558,-527.2430719,0.000158,2]
[399600914,1766532558146,-328.4,0.000158,2]
[399600915,1766532559763,-269.4494774,0.0001571,2]
[399600916,1766532561996,-12.11505655,0.0001571,2]
[399600917,1766532562037,-500.32661205,0.000158,2]
[399600918,1766532565922,-291.47211502,0.000158,2]
[399600919,1766532570566,-267.10738813,0.000158,2]
[399600920,1766532572802,-151.94433463,0.000158,2]
[399600921,1766532574885,-293.07151983,0.000158,2]
[399600922,1766532576443,-177.50363396,0.000158,2]
[399600923,1766532581165,-231.05343881,0.000158,2]
[399600924,1766532584109,-303.56768944,0.000158,2]
[399600925,1766532588480,-386.71585057,0.000158,2]
[399600926,1766532591005,-379.09618597,0.000158,2]
[399600927,1766532593023,-160.79287812,0.000158,2]
[399600928,1766532597396,-609.84158864,0.000158,2]
[399600929,1766532598655,-276.18542143,0.000158,2]
[399600930,1766532601321,-275.08969456,0.00015799,2]
[399600931,1766532604309,-300.0,0.00015799,2]
[399600932,1766532606875,-296.70157603,0.00015799,2]
[399600933,1766532609536,-165.34295162,0.00015799,2]
[399600937,1766532614404,-162.86577779,0.00015799,2]
[399600938,1766532614429,-137.13422221,0.00015799,2]
[399600940,1766532616440,-162.86577779,0.00015799,2]
[399600941,1766532616467,-120.45310775,0.00015799,2]
[399600942,1766532621308,-179.54689225,0.00015799,2]
[399600943,1766532621333,-96.94892859,0.00015799,2]
[399600944,1766532623294,-113.05107141,0.00015799,2]
[399600945,1766532623333,-186.94892859,0.000158,2]
[399600948,1766532631109,-263.96616573,0.00015705,2]
[399600949,1766532631147,-92.33225824,0.000158,2]
[399600957,1766532631352,-653.4,0.000158,2]
[399600958,1766532631364,-515.93125002,0.000158,2]
[399600959,1766532631379,-139720.50170758,0.000158,2]
[399600960,1766532631410,-35900.89533448,0.000158,2]
[399600961,1766532631439,-574.9815518,0.000158,2]
[399600962,1766532631466,-502.93953922,0.000158,2]
[399600982,1766532632234,-369.65896929,0.000158,2]
[399600986,1766532637265,-374.94209852,0.000158,2]
[399600987,1766532637424,-3987.72694341,0.000158,2]
[399600988,1766532637436,-1193.8,0.000158,2]
[399600989,1766532637447,-1295.24488642,0.000158,2]
[399600990,1766532637458,-22907.5315,0.000158,2]
[399600991,1766532637469,-4363.35,0.000158,2]
[399600992,1766532637538,-1064.40417485,0.000158,2]
[399600993,1766532637550,-778911.94744819,0.000158,2]
[399600994,1766532637560,-250.0,0.00015805,2]
[399600995,1766532637570,-660.93,0.0001581,2]
[399600996,1766532637579,-263.96616569,0.00015838,2]
[399600997,1766532637590,-281.56453393,0.0001588,2]
[399600998,1766532637599,-162.97209621,0.0001589,2]
[399600999,1766532637610,-263.96616569,0.00015971,2]
[399601000,1766532637619,-664.47128542,0.0001599,2]
[399601001,1766532637629,-43075.79939415,0.00016,4]
[399601002,1766532637639,-281.56453393,0.0001605,2]
[399601003,1766532637649,-19051.3447,0.00016076,2]
[399601004,1766532637659,-1000.0,0.00016076,2]
[399601005,1766532637668,-664.47128542,0.00016104,2]
[399601006,1766532637678,-162.97209621,0.00016117,2]
[399601007,1766532637688,-500.0,0.00016175,2]
[399601008,1766532637700,-500.0,0.00016175,2]
[399601009,1766532637710,-500.0,0.00016175,2]
[399601010,1766532637720,-500.0,0.00016175,2]
[399601012,1766532637731,-372730.38373571,0.000162,5]
[399601014,1766532637741,-664.47128542,0.00016217,2]
[399601015,1766532637751,-281.56453393,0.0001622,2]
[399601017,1766532637760,-173.62,0.00016258,2]
[399601018,1766532637770,-664.47128542,0.00016331,2]
[399601020,1766532637782,-200.0,0.0001634,2]
[399601022,1766532637792,-281.56453393,0.0001639,2]
[399601023,1766532637802,-664.47128542,0.00016445,2]
[399601024,1766532637812,-664.47128542,0.00016559,2]
[399601025,1766532637822,-281.56453393,0.0001656,2]
[399601026,1766532637832,-168.0,0.00016626,2]
[399601027,1766532637842,-664.47128542,0.00016672,2]
[399601028,1766532637851,-168.0,0.00016726,2]
[399601029,1766532637862,-281.56453393,0.0001673,2]
[399601030,1766532637872,-168.0,0.00016743,2]
[399601031,1766532637882,-664.47128542,0.00016786,2]
[399601032,1766532637893,-168.0,0.0001685,2]
[399601033,1766532637903,-230.0,0.00016852,2]
[399601034,1766532637914,-2710.57920313,0.000169,2]
[399601035,1766532637924,-664.47128542,0.000169,2]
[399601036,1766532637934,-298.9829692,0.000169,2]
[399601037,1766532637944,-281.56453393,0.000169,2]
[399601038,1766532637954,-151.78709846,0.000169,2]
[399601039,1766532637964,-345.73583034,0.000169,2]
[399601040,1766532637974,-395.3110464,0.000169,2]
[399601041,1766532637983,-344.61,0.00016922,2]
[399601042,1766532637993,-25139.28,0.00016986,2]
[399601043,1766532638003,-500.0,0.00016999,2]
[399601044,1766532638012,-500.0,0.00016999,2]
[399601045,1766532638023,-256.42912112,0.00016999,2]
[399601046,1766532638033,-402.1808488,0.00016999,2]
[399601047,1766532638043,-500.0,0.00016999,2]
[399601048,1766532638054,-500.0,0.00016999,2]
[399601049,1766532638064,-556.41568255,0.00016999,2]
[399601050,1766532638074,-500.0,0.00016999,2]
[399601051,1766532638084,-500.0,0.00016999,2]
[399601052,1766532638094,-500.0,0.00016999,2]
[399601053,1766532638104,-500.0,0.00016999,2]
[399601054,1766532638113,-500.0,0.00016999,2]
[399601055,1766532638123,-500.0,0.00016999,2]
[399601056,1766532638133,-500.0,0.00016999,2]
[399601057,1766532638143,-500.0,0.00016999,2]
[399601058,1766532638153,-500.0,0.00016999,2]
[399601059,1766532638162,-500.0,0.00016999,2]
[399601060,1766532638172,-595.26175607,0.00016999,2]
[399601061,1766532638182,-500.0,0.00016999,2]
[399601062,1766532638192,-500.0,0.00016999,2]
[399601063,1766532638202,-500.0,0.00016999,2]
[399601064,1766532638212,-500.0,0.00016999,2]
[399601065,1766532638221,-500.0,0.00016999,2]
[399601066,1766532638231,-500.0,0.00016999,2]
[399601067,1766532638241,-500.0,0.00016999,2]
[399601068,1766532638251,-500.0,0.00016999,2]
[399601069,1766532638261,-500.0,0.00016999,2]
[399601070,1766532638271,-500.0,0.00016999,2]
[399601071,1766532638282,-500.0,0.00016999,2]
[399601072,1766532638291,-500.0,0.00016999,2]
[399601073,1766532638302,-500.0,0.00016999,2]
[399601074,1766532638312,-340.01637719,0.00016999,2]
[399601075,1766532638322,-349.75566457,0.00016999,2]
[399601076,1766532638333,-500.0,0.00016999,2]
[399601077,1766532638343,-500.0,0.00016999,2]
[399601078,1766532638353,-500.0,0.00016999,2]
[399601079,1766532638363,-500.0,0.00016999,2]
[399601080,1766532638374,-500.0,0.00016999,2]
[399601081,1766532638385,-500.0,0.00016999,2]
[399601082,1766532638395,-500.0,0.00016999,2]
[399601083,1766532638406,-500.0,0.00016999,2]
[399601084,1766532638416,-500.0,0.00016999,2]
[399601085,1766532638426,-500.0,0.00016999,2]
[399601086,1766532638437,-500.0,0.00016999,2]
[399601087,1766532638447,-292.0,0.00016999,2]
[399601088,1766532638457,-500.0,0.00016999,2]
[399601089,1766532638467,-500.0,0.00016999,2]
[399601090,1766532638479,-500.0,0.00016999,2]
[399601091,1766532638489,-500.0,0.00016999,2]
[399601092,1766532638500,-500.0,0.00016999,2]
[399601093,1766532638510,-500.0,0.00016999,2]
[399601094,1766532638520,-500.0,0.00016999,2]
[399601095,1766532638531,-500.0,0.00016999,2]
[399601096,1766532638542,-500.0,0.00016999,2]
[399601097,1766532638552,-500.0,0.00016999,2]
[399601098,1766532638563,-500.0,0.00016999,2]
[399601099,1766532638573,-500.0,0.00016999,2]
[399601100,1766532638584,-500.0,0.00016999,2]
[399601101,1766532638595,-500.0,0.00016999,2]
[399601102,1766532638605,-500.0,0.00016999,2]
[399601103,1766532638615,-500.0,0.00016999,2]
[399601104,1766532638632,-500.0,0.00016999,2]
[399601105,1766532638643,-500.0,0.00016999,2]
[399601106,1766532638653,-500.0,0.00016999,2]
[399601107,1766532638663,-500.0,0.00016999,2]
[399601108,1766532638676,-500.0,0.00016999,2]
[399601109,1766532638697,-500.0,0.00016999,2]
[399601110,1766532638720,-500.0,0.00016999,2]
[399601111,1766532638738,-500.0,0.00016999,2]
[399601112,1766532638751,-500.0,0.00016999,2]
[399601113,1766532638763,-500.0,0.00016999,2]
[399601114,1766532638774,-500.0,0.00016999,2]
[399601115,1766532638785,-500.0,0.00016999,2]
[399601116,1766532638797,-500.0,0.00016999,2]
[399601117,1766532638808,-500.0,0.00016999,2]
[399601118,1766532638819,-500.0,0.00016999,2]
[399601119,1766532638832,-500.0,0.00016999,2]
[399601120,1766532638842,-500.0,0.00016999,2]
[399601121,1766532638853,-500.0,0.00016999,2]
[399601122,1766532638863,-500.0,0.00016999,2]
[399601123,1766532638874,-500.0,0.00016999,2]
[399601124,1766532638884,-500.0,0.00016999,2]
[399601125,1766532638894,-500.0,0.00016999,2]
[399601126,1766532638904,-515.65131858,0.00016999,2]
[399601127,1766532638915,-500.0,0.00016999,2]
[399601128,1766532638925,-500.0,0.00016999,2]
[399601129,1766532638935,-500.0,0.00016999,2]
[399601130,1766532638946,-500.0,0.00016999,2]
[399601131,1766532638957,-500.0,0.00016999,2]
[399601132,1766532638968,-500.0,0.00016999,2]
[399601133,1766532638979,-500.0,0.00016999,2]
[399601134,1766532638991,-662.68380636,0.00016999,2]
[399601135,1766532639011,-662.68380636,0.00016999,2]
[399601136,1766532639029,-662.68380636,0.00016999,2]
[399601137,1766532639039,-662.68380636,0.00016999,2]
[399601138,1766532639050,-662.68380636,0.00016999,2]
[399601139,1766532639061,-662.68380636,0.00016999,2]
[399601140,1766532639072,-662.68380636,0.00016999,2]
[399601141,1766532639082,-662.68380636,0.00016999,2]
[399601142,1766532639092,-662.68380636,0.00016999,2]
[399601143,1766532639103,-662.68380636,0.00016999,2]
[399601144,1766532639113,-662.68380636,0.00016999,2]
[399601145,1766532639122,-662.68380636,0.00016999,2]
[399601146,1766532639132,-662.68380636,0.00016999,2]
[399601147,1766532639142,-662.68380636,0.00016999,2]
[399601148,1766532639153,-662.68380636,0.00016999,2]
[399601149,1766532639162,-662.68380636,0.00016999,2]
[399601150,1766532639172,-662.68380636,0.00016999,2]
[399601151,1766532639182,-662.68380636,0.00016999,2]
[399601152,1766532639191,-662.68380636,0.00016999,2]
[399601153,1766532639201,-662.68380636,0.00016999,2]
[399601154,1766532639211,-662.68380636,0.00016999,2]
[399601156,1766532639220,-662.68380636,0.00016999,2]
[399601157,1766532639230,-662.68380636,0.00016999,2]
[399601159,1766532639239,-662.68380636,0.00016999,2]
[399601161,1766532639249,-662.68380636,0.00016999,2]
[399601163,1766532639259,-662.68380636,0.00016999,2]
[399601165,1766532639269,-662.68380636,0.00016999,2]
[399601167,1766532639278,-662.68380636,0.00016999,2]
[399601169,1766532639288,-662.68380636,0.00016999,2]
[399601171,1766532639298,-662.68380636,0.00016999,2]
[399601173,1766532639307,-662.68380636,0.00016999,2]
[399601175,1766532639317,-662.68380636,0.00016999,2]
[399601177,1766532639326,-662.68380636,0.00016999,2]
[399601179,1766532639335,-658.54203256,0.00016999,2]
[399601181,1766532639346,-658.54203256,0.00016999,2]
[399601183,1766532639355,-658.54203256,0.00016999,2]
[399601185,1766532639367,-658.54203256,0.00016999,2]
[399601187,1766532639376,-658.54203256,0.00016999,2]
[399601189,1766532639387,-658.54203256,0.00016999,2]
[399601191,1766532639397,-658.54203256,0.00016999,2]
[399601193,1766532639408,-658.54203256,0.00016999,2]
[399601195,1766532639419,-658.54203256,0.00016999,2]
[399601196,1766532639428,-658.54203256,0.00016999,2]
[399601197,1766532639438,-658.54203256,0.00016999,2]
[399601198,1766532639448,-658.5420325,0.00016999,2]
[399601200,1766532639460,-250.0,0.00017,2]
[399601201,1766532639471,-618669.92654082,0.00017,2]
[399601202,1766532639486,-10319.3334292,0.00017,2]
[399601203,1766532639605,-263.96616569,0.00016103,2]
[399601204,1766532639617,-33250.37338064,0.00017,2]
[399601205,1766532639629,-3864.10583401,0.00017,2]
[399601206,1766532639642,-601.50114901,0.00017,2]
[399601207,1766532639661,-518.41009963,0.00017,2]
[399601208,1766532639675,-4227.19490143,0.00017,2]
[399601210,1766532640985,-1.7e-07,0.00017,2]
[399601211,1766532640998,-270.00005,0.00017,2]
[399601212,1766532641010,-336.3733244,0.00017,2]
[399601213,1766532641026,-739.68612039,0.00017,2]
[399601214,1766532641039,-20310.72427912,0.00017,2]
[399601215,1766532641051,-13473.14504517,0.00017,2]
[399601216,1766532641062,-418.54789703,0.00017,2]
[399601217,1766532641073,-284.96430442,0.00017,2]
[399601218,1766532641709,-7938.34899041,0.00017,2]
[399601219,1766532641725,-1711.20790717,0.00017,2]
[399601220,1766532641739,-617.05038178,0.00017,2]
[399601221,1766532642771,-46253.50348504,0.00017,2]
[399601222,1766532642788,-1294.93495063,0.00017,2]
[399601224,1766532645470,-263.96616569,0.00016236,2]
[399601225,1766532645482,-3672.87793829,0.00017,2]
[399601226,1766532645646,-431.431,0.00017,2]
[399601232,1766532672399,-967.27977136,0.000158,2]
[399601233,1766532674503,-167.68895809,0.000158,2]
[399601234,1766532676591,-392.94256692,0.000158,2]
[399601235,1766532679481,-278.1203723,0.000158,2]
[399601237,1766532703525,-472.207,0.00015484,2]
[399601238,1766532703556,-133.55547711,0.000158,2]
[399601239,1766532727698,605.762477,7.945e-05,2]
[399601260,1766532912276,500.0,0.00015173,2]
[399601273,1766533031593,500.0,0.00015173,2]
[399601279,1766533108888,209.0,9.989e-05,2]
[399601280,1766533109688,209.0,9.989e-05,2]
[399601281,1766533109744,209.0,9.989e-05,2]
[399601313,1766533285872,500.0,0.00015173,2]
[399601315,1766533323846,500.0,0.00015173,2]
[399601340,1766533503595,150.0,0.00015288,2]
[399601341,1766533507178,150.0,0.00015288,2]
[399601342,1766533508239,150.0,0.00015288,2]
[399601349,1766533512232,150.0,0.00015288,2]
[399601351,1766533513789,471.24302708,0.00015173,2]
[399601352,1766533514766,150.0,0.00015288,2]
[399601353,1766533516228,500.0,0.00015173,2]
[399601354,1766533517095,150.0,0.00015288,2]
[399601355,1766533523146,150.0,0.00015288,2]
[399601356,1766533524398,150.82546103,0.00015288,2]
[399601357,1766533524443,150.0,0.00015288,2]
[399601358,1766533526009,150.0,0.00015288,2]
[399601359,1766533532249,150.0,0.00015288,2]
[399601360,1766533535707,150.0,0.00015288,2]
[399601373,1766533628070,500.0,0.00015173,2]
[399601376,1766533633586,150.0,0.00014693,2]
[399601408,1766533745327,3229.51,0.00014643,2]
[399601420,1766533825809,500.0,0.00015173,2]
[399601425,1766533831521,-150.0,0.00015324,2]
[399601426,1766533831532,-150.0,0.0001536,2]
[399601427,1766533831543,-150.0,0.00015388,2]
[399601428,1766533831553,-150.0,0.00015396,2]
[399601429,1766533831564,-150.0,0.00015409,2]
[399601430,1766533831575,-150.0,0.00015432,2]
[399601431,1766533831584,-150.0,0.00015458,2]
[399601432,1766533831594,-150.0,0.00015468,2]
[399601433,1766533831604,-150.0,0.00015488,2]
[399601434,1766533831615,-806.0,0.000155,2]
[399601435,1766533831624,-150.0,0.000155,2]
[399601436,1766533831635,-150.0,0.000155,2]
[399601437,1766533831645,-150.0,0.00015505,2]
[399601438,1766533831655,-150.0,0.0001553,2]
[399601439,1766533831666,-150.0,0.0001553,2]
[399601440,1766533831676,-135.31296243,0.00015541,2]
[399601441,1766533831688,-14.68703757,0.00015541,2]
[399601442,1766533831698,-150.0,0.00015577,2]
[399601443,1766533831708,-124.46139269,0.00015582,2]
[399601444,1766533831720,-433.53860731,0.00015582,2]
[399601445,1766533831731,-540.0,0.00015582,2]
[399601446,1766533831741,-1200.0,0.00015586,2]
[399601447,1766533831752,-150.0,0.00015587,2]
[399601448,1766533831762,-500.0,0.000156,2]
[399601449,1766533831772,-300.0,0.00015611,2]
[399601450,1766533831782,-300.0,0.00015611,2]
[399601451,1766533831792,-246.36896725,0.00015612,2]
[399601452,1766533831802,-184.77631601,0.00015612,2]
[399601453,1766533831812,-150.0,0.00015613,2]
[399601454,1766533831822,-150.0,0.00015627,2]
[399601456,1766533831832,-150.0,0.00015649,2]
[399601457,1766533831842,-150.0,0.00015652,2]
[399601460,1766533831852,-500.0,0.00015676,2]
[399601462,1766533831862,-47.95331267,0.00015685,2]
[399601464,1766533831875,-102.04668733,0.00015685,2]
[399601465,1766533831884,-150.0,0.00015687,2]
[399601466,1766533831896,-151.0,0.00015697,2]
[399601467,1766533831906,-1200.0,0.00015698,2]